[Event "Late-Titled-Tuesday-Blitz-June-18-2024"]
[Site "Chess.com"]
[Date "2024.06.18"]
[Round "1"]
[White "GiorgianBarbosa"]
[Black "artin10862"]
[Result "0-1"]
[WhiteElo "2498"]
[BlackElo "2934"]
[TimeControl "180+1"]
[EndTime "14:10:19 PDT"]
[Termination "artin10862 won by checkmate"]

1. c4 {[%clk 0:03:00.3]} 1... e6 {[%clk 0:02:48.2]} 2. g3 {[%clk 0:03:01.2]}
2... d5 {[%clk 0:02:46.7]} 3. Bg2 {[%clk 0:03:02.1]} 3... dxc4 {[%clk
0:02:44.9]} 4. Nf3 {[%clk 0:03:03]} 4... Nf6 {[%clk 0:02:41.3]} 5. Qa4+ {[%clk
0:03:02.4]} 5... Nbd7 {[%clk 0:02:37.1]} 6. Qxc4 {[%clk 0:03:03.3]} 6... a6
{[%clk 0:02:37.1]} 7. O-O {[%clk 0:03:03.2]} 7... b5 {[%clk 0:02:36.9]} 8. Qc2
{[%clk 0:03:03.7]} 8... Bb7 {[%clk 0:02:36.2]} 9. a4 {[%clk 0:03:04]} 9... c5
{[%clk 0:02:32.5]} 10. d3 {[%clk 0:03:01.8]} 10... Be7 {[%clk 0:02:29]} 11. Nc3
{[%clk 0:03:01.2]} 11... Qb6 {[%clk 0:02:25.4]} 12. Qb3 {[%clk 0:03:00.9]} 12...
c4 {[%clk 0:02:20.4]} 13. dxc4 {[%clk 0:02:58.9]} 13... Nc5 {[%clk 0:02:19.9]}
14. Qa2 {[%clk 0:02:34.2]} 14... b4 {[%clk 0:02:19.5]} 15. Nd1 {[%clk
0:02:33.9]} 15... b3 {[%clk 0:01:38]} 16. a5 {[%clk 0:02:20.6]} 16... Qb4 {[%clk
0:00:45.5]} 17. Qa3 {[%clk 0:02:03.8]} 17... Qxc4 {[%clk 0:00:45.3]} 18. Nd2
{[%clk 0:01:39.1]} 18... Qxe2 {[%clk 0:00:35.9]} 19. Bxb7 {[%clk 0:01:36.1]}
19... Nxb7 {[%clk 0:00:35.8]} 20. Qxb3 {[%clk 0:01:35.6]} 20... Nc5 {[%clk
0:00:35.1]} 21. Qc4 {[%clk 0:01:25.5]} 21... Qxc4 {[%clk 0:00:32.4]} 22. Nxc4
{[%clk 0:01:26.4]} 22... Nb3 {[%clk 0:00:32.8]} 23. Rb1 {[%clk 0:01:22.7]} 23...
Rc8 {[%clk 0:00:32.5]} 24. Nde3 {[%clk 0:01:18.3]} 24... O-O {[%clk 0:00:31.4]}
25. Bd2 {[%clk 0:01:07.9]} 25... Nd5 {[%clk 0:00:23]} 26. Rfd1 {[%clk
0:00:48.9]} 26... Rfd8 {[%clk 0:00:18.9]} 27. Be1 {[%clk 0:00:43.9]} 27... Nxe3
{[%clk 0:00:14.8]} 28. Nxe3 {[%clk 0:00:44.8]} 28... Bc5 {[%clk 0:00:15.2]} 29.
Kf1 {[%clk 0:00:33.4]} 29... f6 {[%clk 0:00:12.3]} 30. Bc3 {[%clk 0:00:32.6]}
30... e5 {[%clk 0:00:12.4]} 31. Nc4 {[%clk 0:00:30]} 31... Kf7 {[%clk
0:00:11.1]} 32. Ke2 {[%clk 0:00:25.9]} 32... Ke6 {[%clk 0:00:11.1]} 33. Ne3
{[%clk 0:00:23.5]} 33... Bd4 {[%clk 0:00:08.6]} 34. Rd3 {[%clk 0:00:15.8]} 34...
Nc5 {[%clk 0:00:07.1]} 35. Rdd1 {[%clk 0:00:15.5]} 35... Nb3 {[%clk 0:00:07.5]}
36. Rd3 {[%clk 0:00:15.7]} 36... Bxc3 {[%clk 0:00:08]} 37. bxc3 {[%clk
0:00:13.4]} 37... Rxd3 {[%clk 0:00:06.7]} 38. Kxd3 {[%clk 0:00:14.3]} 38... Nxa5
{[%clk 0:00:06.9]} 39. Ra1 {[%clk 0:00:12.6]} 39... Rc5 {[%clk 0:00:07]} 40. Nc2
{[%clk 0:00:10.9]} 40... Kf7 {[%clk 0:00:07.1]} 41. Nb4 {[%clk 0:00:11.2]} 41...
Nc4 {[%clk 0:00:05.7]} 42. Rxa6 {[%clk 0:00:10.2]} 42... Rc8 {[%clk 0:00:05.3]}
43. Ra7+ {[%clk 0:00:10.5]} 43... Kg6 {[%clk 0:00:05.4]} 44. Nd5 {[%clk
0:00:11]} 44... Rc5 {[%clk 0:00:04.9]} 45. Ne7+ {[%clk 0:00:10.7]} 45... Kg5
{[%clk 0:00:05.4]} 46. h4+ {[%clk 0:00:09.8]} 46... Kg4 {[%clk 0:00:05.6]} 47.
Ke2 {[%clk 0:00:10.2]} 47... Nd6 {[%clk 0:00:04.7]} 48. Ng8 {[%clk 0:00:08.8]}
48... Nf5 {[%clk 0:00:04]} 49. Kf1 {[%clk 0:00:08.5]} 49... Rxc3 {[%clk
0:00:04.3]} 50. Kg2 {[%clk 0:00:08.3]} 50... Kh5 {[%clk 0:00:04.7]} 51. Ne7
{[%clk 0:00:07.8]} 51... Nxe7 {[%clk 0:00:03.8]} 52. Rxe7 {[%clk 0:00:08.7]}
52... Kg6 {[%clk 0:00:04.7]} 53. Ra7 {[%clk 0:00:07.2]} 53... Rc8 {[%clk
0:00:04.1]} 54. Rb7 {[%clk 0:00:07.6]} 54... Rg8 {[%clk 0:00:04.6]} 55. Ra7
{[%clk 0:00:08.1]} 55... h5 {[%clk 0:00:04]} 56. Rb7 {[%clk 0:00:08.4]} 56...
Kf5 {[%clk 0:00:04.6]} 57. Ra7 {[%clk 0:00:08.7]} 57... g5 {[%clk 0:00:05]} 58.
hxg5 {[%clk 0:00:08.6]} 58... Rxg5 {[%clk 0:00:05.9]} 59. Rh7 {[%clk 0:00:08.6]}
59... Kg6 {[%clk 0:00:05.4]} 60. Ra7 {[%clk 0:00:08.5]} 60... Rg4 {[%clk
0:00:05.8]} 61. Kf3 {[%clk 0:00:07.8]} 61... Rd4 {[%clk 0:00:05]} 62. Ra6 {[%clk
0:00:08.2]} 62... h4 {[%clk 0:00:04.6]} 63. gxh4 {[%clk 0:00:08]} 63... Rxh4
{[%clk 0:00:05.2]} 64. Ra5 {[%clk 0:00:07.9]} 64... Rf4+ {[%clk 0:00:05.5]} 65.
Ke3 {[%clk 0:00:08]} 65... Kg5 {[%clk 0:00:05.2]} 66. Rb5 {[%clk 0:00:07.6]}
66... Kg4 {[%clk 0:00:05.2]} 67. Rb6 {[%clk 0:00:07.4]} 67... Rf3+ {[%clk
0:00:05.3]} 68. Ke2 {[%clk 0:00:07.4]} 68... f5 {[%clk 0:00:04]} 69. Rg6+ {[%clk
0:00:07.4]} 69... Kf4 {[%clk 0:00:04.5]} 70. Ra6 {[%clk 0:00:07]} 70... e4
{[%clk 0:00:04.7]} 71. Rh6 {[%clk 0:00:07.3]} 71... Rb3 {[%clk 0:00:01.6]} 72.
Rh4+ {[%clk 0:00:07.1]} 72... Kg5 {[%clk 0:00:02]} 73. Rh8 {[%clk 0:00:07.8]}
73... Kg4 {[%clk 0:00:02.3]} 74. Rg8+ {[%clk 0:00:06.7]} 74... Kf4 {[%clk
0:00:02.7]} 75. Ra8 {[%clk 0:00:07.4]} 75... Rb2+ {[%clk 0:00:02.6]} 76. Kf1
{[%clk 0:00:07.9]} 76... Kg4 {[%clk 0:00:03.1]} 77. Kg2 {[%clk 0:00:08]} 77...
f4 {[%clk 0:00:02.8]} 78. Rg8+ {[%clk 0:00:07.5]} 78... Kf5 {[%clk 0:00:03.2]}
79. Rf8+ {[%clk 0:00:08]} 79... Ke5 {[%clk 0:00:02.9]} 80. Re8+ {[%clk
0:00:08.3]} 80... Kd5 {[%clk 0:00:03.4]} 81. Rd8+ {[%clk 0:00:08.7]} 81... Kc4
{[%clk 0:00:03.8]} 82. Rf8 {[%clk 0:00:08]} 82... f3+ {[%clk 0:00:02.1]} 83. Kg3
{[%clk 0:00:06.5]} 83... Kd3 {[%clk 0:00:02.5]} 84. Rd8+ {[%clk 0:00:05.4]}
84... Ke2 {[%clk 0:00:02.9]} 85. Rd4 {[%clk 0:00:05.8]} 85... e3 {[%clk
0:00:02]} 86. Re4 {[%clk 0:00:03.9]} 86... Rb3 {[%clk 0:00:02.3]} 87. Re6 {[%clk
0:00:02.7]} 87... Kf1 {[%clk 0:00:02.7]} 88. fxe3 {[%clk 0:00:02.2]} 88... f2
{[%clk 0:00:03.2]} 89. Rf6 {[%clk 0:00:01.6]} 89... Rxe3+ {[%clk 0:00:03.2]} 90.
Kh2 {[%clk 0:00:02.3]} 90... Re5 {[%clk 0:00:02.2]} 91. Ra6 {[%clk 0:00:03.2]}
91... Rh5+ {[%clk 0:00:02.4]} 92. Kg3 {[%clk 0:00:03.9]} 92... Kg1 {[%clk
0:00:03]} 93. Ra2 {[%clk 0:00:03.1]} 93... f1=Q {[%clk 0:00:02.7]} 94. Ra1
{[%clk 0:00:02.6]} 94... Rh3+ {[%clk 0:00:02.9]} 95. Kg4 {[%clk 0:00:02.5]}
95... Qxa1 {[%clk 0:00:03.8]} 96. Kxh3 {[%clk 0:00:03]} 96... Qg7 {[%clk
0:00:04.2]} 97. Kh4 {[%clk 0:00:02.8]} 97... Qg6 {[%clk 0:00:05]} 98. Kh3 {[%clk
0:00:02.7]} 98... Kf2 {[%clk 0:00:05.9]} 99. Kh2 {[%clk 0:00:02.8]} 99... Kf3
{[%clk 0:00:06.8]} 100. Kh1 {[%clk 0:00:02.9]} 100... Kf2 {[%clk 0:00:07]} 101.
Kh2 {[%clk 0:00:02.9]} 101... Qg2# {[%clk 0:00:07.7]} 0-1

[Event "Late-Titled-Tuesday-Blitz-June-18-2024"]
[Site "Chess.com"]
[Date "2024.06.18"]
[Round "2"]
[White "Charodej1"]
[Black "miraitrunks"]
[Result "1-0"]
[WhiteElo "2466"]
[BlackElo "2176"]
[TimeControl "180+1"]
[EndTime "14:12:54 PDT"]
[Termination "Charodej1 won by resignation"]

1. Nf3 {[%clk 0:03:00.9]} 1... d5 {[%clk 0:02:59.9]} 2. g3 {[%clk 0:03:00.6]}
2... Nf6 {[%clk 0:02:56.6]} 3. Bg2 {[%clk 0:03:00.5]} 3... c5 {[%clk 0:02:57]}
4. O-O {[%clk 0:03:00.6]} 4... Nc6 {[%clk 0:02:57.6]} 5. d3 {[%clk 0:02:56.2]}
5... e5 {[%clk 0:02:57.4]} 6. c4 {[%clk 0:02:53.3]} 6... dxc4 {[%clk 0:02:54]}
7. dxc4 {[%clk 0:02:53.3]} 7... Qxd1 {[%clk 0:02:54.9]} 8. Rxd1 {[%clk
0:02:53.2]} 8... Be6 {[%clk 0:02:55.3]} 9. b3 {[%clk 0:02:51.3]} 9... Rd8 {[%clk
0:02:50]} 10. Rxd8+ {[%clk 0:02:49]} 10... Kxd8 {[%clk 0:02:50.9]} 11. Bb2
{[%clk 0:02:48.8]} 11... Bd6 {[%clk 0:02:50.8]} 12. Nc3 {[%clk 0:02:48.3]} 12...
h6 {[%clk 0:02:49.3]} 13. Rd1 {[%clk 0:02:47.7]} 13... Kc7 {[%clk 0:02:44.9]}
14. Nb5+ {[%clk 0:02:47.3]} 1-0

[Event "Late-Titled-Tuesday-Blitz-June-18-2024"]
[Site "Chess.com"]
[Date "2024.06.18"]
[Round "2"]
[White "Bykov_Egor"]
[Black "Juandiv_Chessmood"]
[Result "1-0"]
[WhiteElo "2657"]
[BlackElo "1455"]
[TimeControl "180+1"]
[EndTime "14:13:53 PDT"]
[Termination "Bykov_Egor won by resignation"]

1. Nf3 {[%clk 0:02:58.8]} 1... c5 {[%clk 0:02:59.6]} 2. e3 {[%clk 0:02:55.6]}
2... g6 {[%clk 0:02:59.2]} 3. d4 {[%clk 0:02:52.5]} 3... d5 {[%clk 0:02:59.5]}
4. b3 {[%clk 0:02:43.1]} 4... Bg7 {[%clk 0:02:59.2]} 5. Bb2 {[%clk 0:02:43.6]}
5... Nf6 {[%clk 0:02:57.6]} 6. dxc5 {[%clk 0:02:41.7]} 6... Qa5+ {[%clk
0:02:57.8]} 7. Nbd2 {[%clk 0:02:37.5]} 7... Qxc5 {[%clk 0:02:54.5]} 8. c4 {[%clk
0:02:36.7]} 8... O-O {[%clk 0:02:52.2]} 9. a3 {[%clk 0:02:26.8]} 9... a5 {[%clk
0:02:45.8]} 10. Rc1 {[%clk 0:02:17.8]} 10... Nc6 {[%clk 0:02:40.6]} 11. cxd5
{[%clk 0:02:14.2]} 11... Qxd5 {[%clk 0:02:39.6]} 12. Bc4 {[%clk 0:02:14.7]}
12... Qd8 {[%clk 0:02:32.9]} 13. O-O {[%clk 0:02:12.9]} 13... Bg4 {[%clk
0:02:29.3]} 14. Qe2 {[%clk 0:02:09.9]} 14... Ne5 {[%clk 0:02:25.7]} 15. Bxe5
{[%clk 0:02:08.4]} 1-0

[Event "Late-Titled-Tuesday-Blitz-June-18-2024"]
[Site "Chess.com"]
[Date "2024.06.18"]
[Round "2"]
[White "jero888"]
[Black "ATM622"]
[Result "0-1"]
[WhiteElo "2343"]
[BlackElo "2537"]
[TimeControl "180+1"]
[EndTime "14:14:08 PDT"]
[Termination "ATM622 won by resignation"]

1. e4 {[%clk 0:02:54.3]} 1... c6 {[%clk 0:02:59.5]} 2. d4 {[%clk 0:02:54.1]}
2... d5 {[%clk 0:02:59.8]} 3. Nc3 {[%clk 0:02:54.9]} 3... dxe4 {[%clk
0:02:59.7]} 4. Nxe4 {[%clk 0:02:55.8]} 4... Bf5 {[%clk 0:03:00]} 5. Ng3 {[%clk
0:02:56.3]} 5... Bg6 {[%clk 0:03:00.2]} 6. h4 {[%clk 0:02:56.5]} 6... h6 {[%clk
0:03:00.4]} 7. Nf3 {[%clk 0:02:56.2]} 7... Nd7 {[%clk 0:03:00.5]} 8. h5 {[%clk
0:02:56.8]} 8... Bh7 {[%clk 0:03:00.7]} 9. Bd3 {[%clk 0:02:57.5]} 9... Bxd3
{[%clk 0:03:00.9]} 10. Qxd3 {[%clk 0:02:58.4]} 10... Ngf6 {[%clk 0:03:01.3]} 11.
Bf4 {[%clk 0:02:59.1]} 11... e6 {[%clk 0:03:01.6]} 12. O-O-O {[%clk 0:02:59.1]}
12... Be7 {[%clk 0:03:00.2]} 13. Ne4 {[%clk 0:02:57.9]} 13... Nxe4 {[%clk
0:03:00.2]} 14. Qxe4 {[%clk 0:02:58.8]} 14... Nf6 {[%clk 0:03:00.8]} 15. Qe2
{[%clk 0:02:41.7]} 15... Qd5 {[%clk 0:03:00.5]} 16. Kb1 {[%clk 0:02:41]} 16...
Qe4 {[%clk 0:03:00.1]} 17. Qd2 {[%clk 0:02:32.8]} 17... O-O {[%clk 0:02:41.7]}
18. Rde1 {[%clk 0:02:21.6]} 18... Qh7 {[%clk 0:02:35.5]} 19. Ne5 {[%clk
0:02:21.6]} 19... Rad8 {[%clk 0:02:31.3]} 20. g3 {[%clk 0:02:02.9]} 20... c5
{[%clk 0:02:29.7]} 0-1

[Event "Late-Titled-Tuesday-Blitz-June-18-2024"]
[Site "Chess.com"]
[Date "2024.06.18"]
[Round "2"]
[White "dretch"]
[Black "MKlose11"]
[Result "1-0"]
[WhiteElo "2851"]
[BlackElo "2572"]
[TimeControl "180+1"]
[EndTime "14:14:17 PDT"]
[Termination "dretch won by resignation"]

1. d4 {[%clk 0:03:00.9]} 1... Nf6 {[%clk 0:02:57.1]} 2. c4 {[%clk 0:03:01.1]}
2... c5 {[%clk 0:02:55.5]} 3. d5 {[%clk 0:03:01.1]} 3... b5 {[%clk 0:02:54.2]}
4. Nf3 {[%clk 0:03:01]} 4... bxc4 {[%clk 0:02:54]} 5. Nc3 {[%clk 0:03:01.2]}
5... d6 {[%clk 0:02:54.5]} 6. e4 {[%clk 0:03:01.5]} 6... g6 {[%clk 0:02:55.2]}
7. Bxc4 {[%clk 0:03:01.4]} 7... Bg7 {[%clk 0:02:55.9]} 8. e5 {[%clk 0:03:01.4]}
8... dxe5 {[%clk 0:02:55.2]} 9. Nxe5 {[%clk 0:03:01.8]} 9... O-O {[%clk
0:02:49.3]} 10. O-O {[%clk 0:03:01.9]} 10... Nfd7 {[%clk 0:02:49]} 11. Nxf7
{[%clk 0:03:02.3]} 11... Rxf7 {[%clk 0:02:46.2]} 12. d6 {[%clk 0:03:02.6]} 12...
Ne5 {[%clk 0:02:33.2]} 13. Bxf7+ {[%clk 0:02:47.8]} 13... Nxf7 {[%clk
0:02:32.7]} 14. Qd5 {[%clk 0:02:46.2]} 14... Ba6 {[%clk 0:02:08.5]} 15. Qxa8
{[%clk 0:02:42.1]} 15... Bxf1 {[%clk 0:02:06.8]} 16. dxe7 {[%clk 0:02:41.3]}
16... Qe8 {[%clk 0:02:05.3]} 17. Kxf1 {[%clk 0:02:35.8]} 17... Bxc3 {[%clk
0:02:02.4]} 18. bxc3 {[%clk 0:02:34.4]} 18... Qb5+ {[%clk 0:01:56.3]} 19. Kg1
{[%clk 0:02:33.1]} 19... Kg7 {[%clk 0:01:50.8]} 20. Bf4 {[%clk 0:02:26]} 1-0

[Event "Late-Titled-Tuesday-Blitz-June-18-2024"]
[Site "Chess.com"]
[Date "2024.06.18"]
[Round "2"]
[White "olakenn"]
[Black "MarceloPlaya"]
[Result "0-1"]
[WhiteElo "1863"]
[BlackElo "2417"]
[TimeControl "180+1"]
[EndTime "14:15:00 PDT"]
[Termination "MarceloPlaya won by resignation"]

1. e4 {[%clk 0:03:00.9]} 1... e6 {[%clk 0:02:59.6]} 2. d4 {[%clk 0:03:00.7]}
2... d5 {[%clk 0:02:59.5]} 3. exd5 {[%clk 0:03:00.8]} 3... exd5 {[%clk
0:02:59.2]} 4. Nf3 {[%clk 0:03:01.1]} 4... Bd6 {[%clk 0:02:59]} 5. Bd3 {[%clk
0:03:01.4]} 5... Nf6 {[%clk 0:02:58]} 6. O-O {[%clk 0:03:01.6]} 6... O-O {[%clk
0:02:57.9]} 7. Bg5 {[%clk 0:03:00.8]} 7... h6 {[%clk 0:02:57.1]} 8. Bxf6 {[%clk
0:03:00.8]} 8... Qxf6 {[%clk 0:02:56.7]} 9. Re1 {[%clk 0:03:00.6]} 9... Bg4
{[%clk 0:02:55.2]} 10. c3 {[%clk 0:02:58.5]} 10... Nd7 {[%clk 0:02:48.1]} 11.
Be2 {[%clk 0:02:57.2]} 11... Rfe8 {[%clk 0:02:45.8]} 12. Nbd2 {[%clk 0:02:56.8]}
12... Re7 {[%clk 0:02:42.5]} 13. h3 {[%clk 0:02:53.9]} 13... Bh5 {[%clk
0:02:39.7]} 14. Ne5 {[%clk 0:02:37.4]} 14... Bxe2 {[%clk 0:02:24.3]} 15. Nxd7
{[%clk 0:01:43.6]} 15... Qf4 {[%clk 0:02:10.9]} 16. g3 {[%clk 0:01:43.2]} 16...
Bxd1 {[%clk 0:02:02.5]} 17. gxf4 {[%clk 0:01:37.8]} 17... Rxe1+ {[%clk
0:02:01.3]} 18. Kg2 {[%clk 0:01:37.9]} 18... Bf3+ {[%clk 0:01:57.5]} 19. Kxf3
{[%clk 0:01:35.9]} 19... Rxa1 {[%clk 0:01:57.2]} 0-1

[Event "Late-Titled-Tuesday-Blitz-June-18-2024"]
[Site "Chess.com"]
[Date "2024.06.18"]
[Round "2"]
[White "NajdorfPlayerc5"]
[Black "geychess"]
[Result "1-0"]
[WhiteElo "2427"]
[BlackElo "1927"]
[TimeControl "180+1"]
[EndTime "14:15:12 PDT"]
[Termination "NajdorfPlayerc5 won by resignation"]

1. d4 {[%clk 0:03:00.5]} 1... d5 {[%clk 0:02:59.6]} 2. c4 {[%clk 0:03:00.4]}
2... c6 {[%clk 0:02:59]} 3. cxd5 {[%clk 0:02:58.2]} 3... cxd5 {[%clk 0:02:58.5]}
4. Bf4 {[%clk 0:02:58.1]} 4... Nf6 {[%clk 0:02:58.2]} 5. e3 {[%clk 0:02:57.2]}
5... Nc6 {[%clk 0:02:58.1]} 6. Nc3 {[%clk 0:02:57.2]} 6... e6 {[%clk 0:02:48.2]}
7. Bd3 {[%clk 0:02:54.1]} 7... Bd6 {[%clk 0:02:46.9]} 8. Nf3 {[%clk 0:02:45]}
8... Bxf4 {[%clk 0:02:43.9]} 9. exf4 {[%clk 0:02:45.9]} 9... Bd7 {[%clk
0:02:42.1]} 10. O-O {[%clk 0:02:44.7]} 10... Rc8 {[%clk 0:02:41.3]} 11. a3
{[%clk 0:02:27.2]} 11... Qb6 {[%clk 0:02:36.5]} 12. Na4 {[%clk 0:02:24.8]} 12...
Qd8 {[%clk 0:02:33.2]} 13. Nc5 {[%clk 0:02:17.6]} 13... Nxd4 {[%clk 0:02:23.8]}
14. Nxd7 {[%clk 0:01:45.7]} 14... Nxf3+ {[%clk 0:02:23]} 15. Qxf3 {[%clk
0:01:46.6]} 15... Qxd7 {[%clk 0:02:21.6]} 16. f5 {[%clk 0:01:45.1]} 16... O-O
{[%clk 0:02:14.8]} 17. fxe6 {[%clk 0:01:37.4]} 17... fxe6 {[%clk 0:02:13.2]} 18.
Qh3 {[%clk 0:01:37.2]} 18... e5 {[%clk 0:02:07.1]} 19. Bf5 {[%clk 0:01:36.8]}
19... Qb5 {[%clk 0:01:59.9]} 20. Be6+ {[%clk 0:01:34.3]} 20... Kh8 {[%clk
0:01:58]} 21. Bxc8 {[%clk 0:01:33.9]} 1-0

[Event "Late-Titled-Tuesday-Blitz-June-18-2024"]
[Site "Chess.com"]
[Date "2024.06.18"]
[Round "2"]
[White "AlexanderMatlak"]
[Black "InadaC"]
[Result "1/2-1/2"]
[WhiteElo "2477"]
[BlackElo "2239"]
[TimeControl "180+1"]
[EndTime "14:15:19 PDT"]
[Termination "Game drawn by agreement"]

1. c4 {[%clk 0:03:00.9]} 1... Nf6 {[%clk 0:02:59.3]} 2. Nf3 {[%clk 0:03:00.9]}
2... e6 {[%clk 0:02:58.5]} 3. g3 {[%clk 0:03:00.8]} 3... d5 {[%clk 0:02:58.5]}
4. Bg2 {[%clk 0:03:01.2]} 4... c5 {[%clk 0:02:57.4]} 5. O-O {[%clk 0:03:00.8]}
5... Nc6 {[%clk 0:02:56.6]} 6. cxd5 {[%clk 0:03:01.1]} 6... exd5 {[%clk
0:02:56.2]} 7. d4 {[%clk 0:03:01]} 7... cxd4 {[%clk 0:02:55.5]} 8. Nxd4 {[%clk
0:03:01.9]} 8... Bc5 {[%clk 0:02:52.6]} 9. Nb3 {[%clk 0:03:01.1]} 9... Bb6
{[%clk 0:02:52.4]} 10. Nc3 {[%clk 0:03:01.4]} 10... Be6 {[%clk 0:02:52.1]} 11.
Bg5 {[%clk 0:02:56.3]} 11... O-O {[%clk 0:02:51.6]} 12. Rc1 {[%clk 0:02:52.1]}
12... h6 {[%clk 0:02:50.5]} 13. Bxf6 {[%clk 0:02:51.4]} 13... Qxf6 {[%clk
0:02:50.9]} 14. Nxd5 {[%clk 0:02:51.7]} 14... Bxd5 {[%clk 0:02:50.3]} 15. Qxd5
{[%clk 0:02:47.4]} 15... Qxb2 {[%clk 0:02:47.8]} 16. Qd2 {[%clk 0:02:26.8]}
16... Qf6 {[%clk 0:02:45.9]} 17. Nc5 {[%clk 0:02:23.6]} 17... Rad8 {[%clk
0:02:35.7]} 18. Qc3 {[%clk 0:02:04.6]} 18... Qxc3 {[%clk 0:02:32.9]} 19. Rxc3
{[%clk 0:02:05.5]} 19... Bxc5 {[%clk 0:02:33]} 20. Rxc5 {[%clk 0:02:06.4]} 20...
Rd2 {[%clk 0:02:30.3]} 21. Bxc6 {[%clk 0:01:55.7]} 21... bxc6 {[%clk 0:02:29.3]}
22. Rxc6 {[%clk 0:01:56.6]} 22... Rxe2 {[%clk 0:02:29.1]} 23. Ra6 {[%clk
0:01:55.6]} 23... Re7 {[%clk 0:02:28.5]} 24. Rd1 {[%clk 0:01:44.7]} 24... Rb8
{[%clk 0:02:28]} 25. Rd2 {[%clk 0:01:44.5]} 25... Rbb7 {[%clk 0:02:23.5]} 26.
Kg2 {[%clk 0:01:44.5]} 26... Kh7 {[%clk 0:02:19.8]} 27. h4 {[%clk 0:01:39]}
27... Re5 {[%clk 0:02:17.6]} 28. Rd3 {[%clk 0:01:31.8]} 28... Ree7 {[%clk
0:02:16.4]} 29. Rda3 {[%clk 0:01:30.5]} 29... h5 {[%clk 0:02:14.1]} 30. R3a5
{[%clk 0:01:29.4]} 30... g6 {[%clk 0:02:14.2]} 1/2-1/2

[Event "Late-Titled-Tuesday-Blitz-June-18-2024"]
[Site "Chess.com"]
[Date "2024.06.18"]
[Round "2"]
[White "Bugcrusher"]
[Black "hblanco"]
[Result "0-1"]
[WhiteElo "2384"]
[BlackElo "2708"]
[TimeControl "180+1"]
[EndTime "14:15:28 PDT"]
[Termination "hblanco won by resignation"]

1. d4 {[%clk 0:02:58.4]} 1... d5 {[%clk 0:02:58.4]} 2. c4 {[%clk 0:02:58.2]}
2... e6 {[%clk 0:02:57.6]} 3. Nf3 {[%clk 0:02:57.6]} 3... a6 {[%clk 0:02:57.6]}
4. Bg5 {[%clk 0:02:52.3]} 4... Be7 {[%clk 0:02:56.7]} 5. Bxe7 {[%clk 0:02:52.1]}
5... Qxe7 {[%clk 0:02:56.7]} 6. Nbd2 {[%clk 0:02:52.8]} 6... Nf6 {[%clk
0:02:56.1]} 7. g3 {[%clk 0:02:49.5]} 7... O-O {[%clk 0:02:39.4]} 8. Bg2 {[%clk
0:02:47.8]} 8... Nbd7 {[%clk 0:02:37.9]} 9. O-O {[%clk 0:02:47.1]} 9... Rd8
{[%clk 0:02:35.5]} 10. Qc2 {[%clk 0:02:43.1]} 10... c5 {[%clk 0:02:34.5]} 11.
cxd5 {[%clk 0:02:41.4]} 11... Nxd5 {[%clk 0:02:34]} 12. dxc5 {[%clk 0:02:34]}
12... Nxc5 {[%clk 0:02:34.9]} 13. Rac1 {[%clk 0:02:29.2]} 13... b6 {[%clk
0:02:34.5]} 14. Ne5 {[%clk 0:02:25.9]} 14... Bb7 {[%clk 0:02:33.1]} 15. a3
{[%clk 0:02:23]} 15... Rac8 {[%clk 0:02:23.2]} 16. Ne4 {[%clk 0:02:22.5]} 16...
Nd7 {[%clk 0:02:13.4]} 17. Qxc8 {[%clk 0:01:54.6]} 17... Rxc8 {[%clk 0:02:12.6]}
18. Nxd7 {[%clk 0:01:53.6]} 18... Qxd7 {[%clk 0:02:10.1]} 19. Rxc8+ {[%clk
0:01:51.8]} 19... Bxc8 {[%clk 0:02:11]} 20. Rc1 {[%clk 0:01:49.8]} 20... Bb7
{[%clk 0:02:07]} 21. e3 {[%clk 0:01:47.6]} 21... g6 {[%clk 0:02:01.2]} 22. Rd1
{[%clk 0:01:44.9]} 22... Qe7 {[%clk 0:02:00.9]} 23. b4 {[%clk 0:01:43.6]} 23...
Kg7 {[%clk 0:02:00.1]} 24. h4 {[%clk 0:01:42.9]} 24... Qc7 {[%clk 0:01:59.4]}
25. g4 {[%clk 0:01:39.5]} 25... Qc2 {[%clk 0:01:55.5]} 26. Rd4 {[%clk
0:01:38.8]} 26... e5 {[%clk 0:01:47.5]} 0-1

[Event "Late-Titled-Tuesday-Blitz-June-18-2024"]
[Site "Chess.com"]
[Date "2024.06.18"]
[Round "2"]
[White "sergiochess83"]
[Black "10n0l20"]
[Result "1-0"]
[WhiteElo "2876"]
[BlackElo "2467"]
[TimeControl "180+1"]
[EndTime "14:15:41 PDT"]
[Termination "sergiochess83 won by resignation"]

1. e4 {[%clk 0:03:00.9]} 1... e5 {[%clk 0:02:53.9]} 2. Nf3 {[%clk 0:03:00.2]}
2... Nc6 {[%clk 0:02:54.3]} 3. Bb5 {[%clk 0:03:00]} 3... a6 {[%clk 0:02:54.6]}
4. Ba4 {[%clk 0:03:00.1]} 4... Nf6 {[%clk 0:02:55.3]} 5. O-O {[%clk 0:03:00.3]}
5... b5 {[%clk 0:02:56]} 6. Bb3 {[%clk 0:02:59.9]} 6... Bc5 {[%clk 0:02:56.7]}
7. Nc3 {[%clk 0:02:56.4]} 7... d6 {[%clk 0:02:55.9]} 8. Nd5 {[%clk 0:02:51.7]}
8... O-O {[%clk 0:02:53.7]} 9. c3 {[%clk 0:02:48.9]} 9... Bg4 {[%clk 0:02:38]}
10. h3 {[%clk 0:02:41.2]} 10... Bh5 {[%clk 0:02:38.3]} 11. Nxf6+ {[%clk
0:02:10.1]} 11... Qxf6 {[%clk 0:02:34.9]} 12. g4 {[%clk 0:02:10.7]} 12... Bg6
{[%clk 0:02:33]} 13. d4 {[%clk 0:02:01.4]} 13... Bxe4 {[%clk 0:02:24.2]} 14. Ng5
{[%clk 0:01:59.5]} 14... exd4 {[%clk 0:02:12.1]} 15. Nxe4 {[%clk 0:01:58.5]}
15... Qe5 {[%clk 0:02:11.1]} 16. Qf3 {[%clk 0:01:43]} 16... dxc3 {[%clk
0:02:04.9]} 17. bxc3 {[%clk 0:01:43.7]} 17... Bb6 {[%clk 0:01:50.2]} 18. Bd5
{[%clk 0:01:22.8]} 18... Qe8 {[%clk 0:01:29.6]} 19. Bxc6 {[%clk 0:01:19.2]} 1-0